[Event "*** SCC Grand Prix: Titled Tuesday Blitz"]
[Site "Chess.com"]
[Date "2020.08.11"]
[Round "2"]
[White "DFeco"]
[Black "MFBerna"]
[Result "0-1"]
[WhiteElo "2163"]
[BlackElo "2405"]
[TimeControl "180+1"]
[EndTime "10:19:22 PDT"]
[Termination "MFBerna won by resignation"]

1. c4 {[%clk 0:03:00.9]} 1... Nf6 {[%clk 0:02:57.3]} 2. g3 {[%clk 0:03:00.7]}
2... e6 {[%clk 0:02:56.8]} 3. Bg2 {[%clk 0:03:00.9]} 3... d5 {[%clk 0:02:57.3]}
4. Nf3 {[%clk 0:03:01.1]} 4... Be7 {[%clk 0:02:57.8]} 5. O-O {[%clk 0:03:01.7]}
5... O-O {[%clk 0:02:58.3]} 6. b3 {[%clk 0:03:02.2]} 6... c5 {[%clk 0:02:58.7]}
7. Bb2 {[%clk 0:03:01.9]} 7... Nc6 {[%clk 0:02:59.2]} 8. e3 {[%clk 0:03:01.3]}
8... b6 {[%clk 0:02:58.2]} 9. Nc3 {[%clk 0:03:01.4]} 9... Bb7 {[%clk 0:02:58.1]}
10. cxd5 {[%clk 0:03:01.5]} 10... Nxd5 {[%clk 0:02:54.8]} 11. Nxd5 {[%clk
0:03:01.5]} 11... exd5 {[%clk 0:02:54.6]} 12. d4 {[%clk 0:03:02]} 12... Ba6
{[%clk 0:02:51]} 13. Re1 {[%clk 0:03:01.4]} 13... c4 {[%clk 0:02:51.4]} 14. Ne5
{[%clk 0:02:53.2]} 14... Nxe5 {[%clk 0:02:50.9]} 15. dxe5 {[%clk 0:02:51.9]}
15... Bb4 {[%clk 0:02:45.9]} 16. Bxd5 {[%clk 0:02:34.6]} 16... Bxe1 {[%clk
0:02:45.1]} 17. Bxa8 {[%clk 0:02:30.9]} 17... Bxf2+ {[%clk 0:02:16.9]} 18. Kxf2
{[%clk 0:02:25.7]} 18... Qxa8 {[%clk 0:02:15.2]} 19. bxc4 {[%clk 0:02:23.4]}
19... Rd8 {[%clk 0:01:59.1]} 20. Qc2 {[%clk 0:02:13]} 20... Bxc4 {[%clk
0:01:33.9]} 21. Rd1 {[%clk 0:01:47.4]} 21... Bxa2 {[%clk 0:01:24.7]} 22. Rd6
{[%clk 0:01:27.1]} 22... Rc8 {[%clk 0:01:13.3]} 23. Qd3 {[%clk 0:01:08.9]} 23...
Be6 {[%clk 0:00:57.8]} 24. Bc3 {[%clk 0:00:52.2]} 24... h6 {[%clk 0:00:55.6]}
25. e4 {[%clk 0:00:35.8]} 25... Qb7 {[%clk 0:00:50.6]} 26. Rd8+ {[%clk
0:00:34.3]} 26... Rxd8 {[%clk 0:00:45.9]} 27. Qxd8+ {[%clk 0:00:34.2]} 27... Kh7
{[%clk 0:00:46.8]} 28. Qd3 {[%clk 0:00:28.3]} 28... a5 {[%clk 0:00:45.2]} 29.
Ke3 {[%clk 0:00:24.1]} 29... b5 {[%clk 0:00:39.8]} 30. Qd4 {[%clk 0:00:19.8]}
30... b4 {[%clk 0:00:37.9]} 31. Bd2 {[%clk 0:00:19.6]} 31... Qb5 {[%clk
0:00:34.8]} 32. Qd3 {[%clk 0:00:18.3]} 32... Qxe5 {[%clk 0:00:31.6]} 33. Qd4
{[%clk 0:00:18.4]} 33... Qg5+ {[%clk 0:00:29.2]} 34. Ke2 {[%clk 0:00:17.8]}
34... Qh5+ {[%clk 0:00:28.6]} 35. Ke1 {[%clk 0:00:16.7]} 35... Qxh2 {[%clk
0:00:26.1]} 36. e5 {[%clk 0:00:15.6]} 36... Qxg3+ {[%clk 0:00:25.8]} 37. Kd1
{[%clk 0:00:14.9]} 37... Qg4+ {[%clk 0:00:24.7]} 38. Qxg4 {[%clk 0:00:12.9]}
38... Bxg4+ {[%clk 0:00:25.6]} 39. Kc2 {[%clk 0:00:12.7]} 39... Kg6 {[%clk
0:00:25.7]} 40. Kb3 {[%clk 0:00:12.5]} 40... Bd7 {[%clk 0:00:25.5]} 41. Kc4
{[%clk 0:00:11.3]} 41... Kf5 {[%clk 0:00:23.5]} 42. Kc5 {[%clk 0:00:10.1]} 42...
h5 {[%clk 0:00:21.6]} 43. Kb6 {[%clk 0:00:09.4]} 43... b3 {[%clk 0:00:20.5]} 44.
Bc3 {[%clk 0:00:09.8]} 44... a4 {[%clk 0:00:20.8]} 45. Bb2 {[%clk 0:00:09]}
45... h4 {[%clk 0:00:20.1]} 46. Kc5 {[%clk 0:00:07.8]} 46... h3 {[%clk
0:00:20.2]} 47. Kd6 {[%clk 0:00:08.2]} 47... Be6 {[%clk 0:00:19.3]} 48. Ke7
{[%clk 0:00:07.7]} 48... h2 {[%clk 0:00:19.6]} 49. Kf8 {[%clk 0:00:06.1]} 49...
h1=Q {[%clk 0:00:20.1]} 0-1

[Event "*** SCC Grand Prix: Titled Tuesday Blitz"]
[Site "Chess.com"]
[Date "2020.08.11"]
[Round "2"]
[White "tylityli"]
[Black "elegant285"]
[Result "1-0"]
[WhiteElo "2169"]
[BlackElo "2389"]
[TimeControl "180+1"]
[EndTime "10:19:22 PDT"]
[Termination "tylityli won by resignation"]

1. d4 {[%clk 0:03:00.9]} 1... Nf6 {[%clk 0:02:58.3]} 2. c4 {[%clk 0:03:01.1]}
2... e6 {[%clk 0:02:58.2]} 3. Nc3 {[%clk 0:03:01.2]} 3... Bb4 {[%clk 0:02:57.9]}
4. e3 {[%clk 0:03:01.5]} 4... c5 {[%clk 0:02:57.1]} 5. Ne2 {[%clk 0:03:02.4]}
5... b6 {[%clk 0:02:56.3]} 6. a3 {[%clk 0:03:02.2]} 6... Ba5 {[%clk 0:02:56.2]}
7. Rb1 {[%clk 0:03:01.3]} 7... Na6 {[%clk 0:02:56.1]} 8. g3 {[%clk 0:03:01.5]}
8... Bb7 {[%clk 0:02:55.8]} 9. d5 {[%clk 0:03:01.8]} 9... b5 {[%clk 0:02:56.3]}
10. Bg2 {[%clk 0:03:00.2]} 10... bxc4 {[%clk 0:02:56.7]} 11. e4 {[%clk
0:02:57.5]} 11... O-O {[%clk 0:02:53.5]} 12. O-O {[%clk 0:02:57.7]} 12... exd5
{[%clk 0:02:53.7]} 13. exd5 {[%clk 0:02:57.3]} 13... d6 {[%clk 0:02:51.2]} 14.
Qa4 {[%clk 0:02:55.7]} 14... Bb6 {[%clk 0:02:50]} 15. Qxc4 {[%clk 0:02:55.1]}
15... Nc7 {[%clk 0:02:50.4]} 16. Nf4 {[%clk 0:02:43.1]} 16... Ba6 {[%clk
0:02:49.3]} 17. Qa4 {[%clk 0:02:36.8]} 17... Bxf1 {[%clk 0:02:49.9]} 18. Bxf1
{[%clk 0:02:30.8]} 18... Qd7 {[%clk 0:02:45.8]} 19. Qc4 {[%clk 0:02:28.8]} 19...
Rfe8 {[%clk 0:02:36.9]} 20. Bd2 {[%clk 0:02:28]} 20... Re5 {[%clk 0:02:24.3]}
21. Bh3 {[%clk 0:02:27.2]} 21... Qe8 {[%clk 0:02:12.5]} 22. Nd3 {[%clk
0:02:24.2]} 22... Re7 {[%clk 0:01:50.5]} 23. Bf4 {[%clk 0:02:21.2]} 23... Ne4
{[%clk 0:01:46.8]} 24. Bg2 {[%clk 0:01:55.5]} 24... Nxc3 {[%clk 0:01:24.6]} 25.
bxc3 {[%clk 0:01:56.4]} 25... Qd7 {[%clk 0:01:21.5]} 26. h4 {[%clk 0:01:41.9]}
26... Rae8 {[%clk 0:01:14.4]} 27. Kh2 {[%clk 0:01:40]} 27... Qd8 {[%clk
0:00:46.8]} 28. Bg5 {[%clk 0:01:38.3]} 28... f6 {[%clk 0:00:46.2]} 29. Bf4
{[%clk 0:01:38.3]} 29... Re2 {[%clk 0:00:44.9]} 30. Bf3 {[%clk 0:01:36]} 30...
Rc2 {[%clk 0:00:39.4]} 31. Bd1 {[%clk 0:01:31.4]} 31... Qd7 {[%clk 0:00:17]} 32.
Bxc2 {[%clk 0:01:27.2]} 32... Re2 {[%clk 0:00:17.7]} 33. Bd1 {[%clk 0:01:25.3]}
33... Re7 {[%clk 0:00:17.8]} 34. Bf3 {[%clk 0:01:23]} 34... g6 {[%clk 0:00:16]}
35. Re1 {[%clk 0:01:18.3]} 35... Kg7 {[%clk 0:00:14.5]} 36. Rxe7+ {[%clk
0:01:16.3]} 36... Qxe7 {[%clk 0:00:15.4]} 37. Qe4 {[%clk 0:01:14.7]} 37... Qd7
{[%clk 0:00:13.1]} 38. Nb2 {[%clk 0:01:11]} 38... Nb5 {[%clk 0:00:12.3]} 39. a4
{[%clk 0:00:57.9]} 39... Nxc3 {[%clk 0:00:11.2]} 40. Qc4 {[%clk 0:00:42.9]}
40... Ba5 {[%clk 0:00:10.9]} 41. Bd2 {[%clk 0:00:38.4]} 41... Qf5 {[%clk
0:00:10.6]} 42. Kg2 {[%clk 0:00:35.2]} 42... Qc2 {[%clk 0:00:10.2]} 43. Bxc3
{[%clk 0:00:31.1]} 43... Bxc3 {[%clk 0:00:11.1]} 44. Nd3 {[%clk 0:00:29.5]}
44... Qd2 {[%clk 0:00:11.5]} 45. Nf4 {[%clk 0:00:28.5]} 45... Bd4 {[%clk
0:00:10.9]} 46. Ne6+ {[%clk 0:00:28.2]} 46... Kf7 {[%clk 0:00:10.6]} 47. Nxd4
{[%clk 0:00:28.7]} 47... cxd4 {[%clk 0:00:11.5]} 48. Be4 {[%clk 0:00:28.7]}
48... f5 {[%clk 0:00:10.4]} 49. Qc7+ {[%clk 0:00:27.8]} 49... Kf6 {[%clk
0:00:10.2]} 50. Qxd6+ {[%clk 0:00:26.6]} 50... Kg7 {[%clk 0:00:10.7]} 51. Qe5+
{[%clk 0:00:25.9]} 51... Kg8 {[%clk 0:00:10.7]} 52. Bf3 {[%clk 0:00:25.1]} 52...
d3 {[%clk 0:00:10.9]} 53. d6 {[%clk 0:00:25.2]} 53... Qc2 {[%clk 0:00:09.6]} 54.
d7 {[%clk 0:00:24.7]} 1-0

[Event "*** SCC Grand Prix: Titled Tuesday Blitz"]
[Site "Chess.com"]
[Date "2020.08.11"]
[Round "2"]
[White "hansen"]
[Black "frederiksvane"]
[Result "1-0"]
[WhiteElo "2934"]
[BlackElo "2592"]
[TimeControl "180+1"]
[EndTime "10:19:23 PDT"]
[Termination "hansen won by resignation"]

1. e4 {[%clk 0:03:00.9]} 1... c5 {[%clk 0:03:00.1]} 2. Nf3 {[%clk 0:02:59.4]}
2... g6 {[%clk 0:03:00.5]} 3. Bc4 {[%clk 0:02:52.1]} 3... Bg7 {[%clk 0:02:59.6]}
4. O-O {[%clk 0:02:45.5]} 4... Nf6 {[%clk 0:02:30]} 5. d3 {[%clk 0:02:44.3]}
5... O-O {[%clk 0:02:27.6]} 6. Re1 {[%clk 0:02:43.8]} 6... Nc6 {[%clk
0:02:25.2]} 7. h3 {[%clk 0:02:43]} 7... d5 {[%clk 0:02:21.4]} 8. exd5 {[%clk
0:02:41.1]} 8... Nxd5 {[%clk 0:02:22.3]} 9. a4 {[%clk 0:02:36.3]} 9... b6 {[%clk
0:02:16.1]} 10. c3 {[%clk 0:02:27.5]} 10... Bb7 {[%clk 0:02:13.1]} 11. Bg5
{[%clk 0:02:28.1]} 11... h6 {[%clk 0:01:57]} 12. Bh4 {[%clk 0:02:25.9]} 12...
Qd7 {[%clk 0:01:50.7]} 13. Nbd2 {[%clk 0:02:09.9]} 13... Rad8 {[%clk 0:01:24.6]}
14. Bg3 {[%clk 0:01:42]} 14... Rfe8 {[%clk 0:01:17.7]} 15. Bb5 {[%clk
0:01:24.3]} 15... a6 {[%clk 0:01:11.2]} 16. Bc4 {[%clk 0:01:17.8]} 16... e5
{[%clk 0:00:57.7]} 17. Qb3 {[%clk 0:01:06]} 17... Na5 {[%clk 0:00:56.5]} 18. Qc2
{[%clk 0:01:06.2]} 18... Nf4 {[%clk 0:00:45.3]} 19. Bxf4 {[%clk 0:00:58.9]}
19... exf4 {[%clk 0:00:45.6]} 20. Rxe8+ {[%clk 0:00:59.8]} 20... Rxe8 {[%clk
0:00:45.8]} 21. Ba2 {[%clk 0:00:50.3]} 21... Rd8 {[%clk 0:00:43]} 22. d4 {[%clk
0:00:48.9]} 22... cxd4 {[%clk 0:00:37.6]} 23. Qxg6 {[%clk 0:00:41.6]} 23... Bd5
{[%clk 0:00:18.2]} 24. Bxd5 {[%clk 0:00:40.9]} 24... Qxd5 {[%clk 0:00:19.1]} 25.
Qxb6 {[%clk 0:00:41]} 25... dxc3 {[%clk 0:00:18.3]} 26. bxc3 {[%clk 0:00:41.3]}
26... Bxc3 {[%clk 0:00:19.2]} 27. Ra2 {[%clk 0:00:18.7]} 27... Rd6 {[%clk
0:00:14]} 28. Qb1 {[%clk 0:00:16.1]} 28... Re6 {[%clk 0:00:05.2]} 29. Rc2 {[%clk
0:00:14]} 29... Qd3 {[%clk 0:00:05.3]} 30. Qc1 {[%clk 0:00:12]} 30... Bf6 {[%clk
0:00:04.7]} 31. Kh2 {[%clk 0:00:07.9]} 31... Kg7 {[%clk 0:00:04.6]} 32. Rc7
{[%clk 0:00:06.9]} 32... Nb3 {[%clk 0:00:03]} 33. Nxb3 {[%clk 0:00:06.7]} 33...
Qxb3 {[%clk 0:00:03.9]} 34. Qxf4 {[%clk 0:00:07.1]} 34... Qd5 {[%clk 0:00:02.7]}
35. Qg4+ {[%clk 0:00:06.6]} 35... Kf8 {[%clk 0:00:02.7]} 36. Rc8+ {[%clk
0:00:06.7]} 36... Ke7 {[%clk 0:00:02.6]} 37. Qb4+ {[%clk 0:00:07.2]} 37... Qd6+
{[%clk 0:00:02.2]} 38. Qxd6+ {[%clk 0:00:07.7]} 38... Rxd6 {[%clk 0:00:03.1]}
39. Rc7+ {[%clk 0:00:07.7]} 39... Ke6 {[%clk 0:00:03.6]} 40. Ra7 {[%clk
0:00:07.2]} 40... Bc3 {[%clk 0:00:03.7]} 41. g3 {[%clk 0:00:06.3]} 41... a5
{[%clk 0:00:04.2]} 42. Kg2 {[%clk 0:00:06.7]} 42... Bb4 {[%clk 0:00:04.7]} 43.
g4 {[%clk 0:00:05.6]} 43... Rd3 {[%clk 0:00:05.2]} 44. Nh4 {[%clk 0:00:05.3]}
44... Ra3 {[%clk 0:00:04.9]} 45. Nf5 {[%clk 0:00:05.8]} 45... Rxa4 {[%clk
0:00:05.2]} 46. Nxh6 {[%clk 0:00:06.2]} 46... Ra2 {[%clk 0:00:03.9]} 47. Nxf7
{[%clk 0:00:05.5]} 47... Bc5 {[%clk 0:00:04.1]} 48. Ng5+ {[%clk 0:00:04.4]}
48... Kf6 {[%clk 0:00:04]} 49. Ne4+ {[%clk 0:00:04.7]} 49... Ke5 {[%clk
0:00:04.7]} 50. Nxc5 {[%clk 0:00:05.6]} 50... Rc2 {[%clk 0:00:05]} 51. Rxa5
{[%clk 0:00:05.6]} 1-0

[Event "*** SCC Grand Prix: Titled Tuesday Blitz"]
[Site "Chess.com"]
[Date "2020.08.11"]
[Round "2"]
[White "gusmaster2262"]
[Black "CaspiIsrael"]
[Result "0-1"]
[WhiteElo "2218"]
[BlackElo "2637"]
[TimeControl "180+1"]
[EndTime "10:19:23 PDT"]
[Termination "CaspiIsrael won on time"]

1. c4 {[%clk 0:03:00.9]} 1... e6 {[%clk 0:02:54.6]} 2. Nc3 {[%clk 0:02:59.6]}
2... Bb4 {[%clk 0:02:53]} 3. Nf3 {[%clk 0:02:57.7]} 3... Nf6 {[%clk 0:02:52.1]}
4. d4 {[%clk 0:02:57.3]} 4... c5 {[%clk 0:02:50.7]} 5. e3 {[%clk 0:02:53.6]}
5... cxd4 {[%clk 0:02:46.1]} 6. exd4 {[%clk 0:02:52.9]} 6... O-O {[%clk
0:02:47]} 7. Bd3 {[%clk 0:02:50.6]} 7... d5 {[%clk 0:02:46.9]} 8. O-O {[%clk
0:02:49.8]} 8... dxc4 {[%clk 0:02:46.9]} 9. Bxc4 {[%clk 0:02:49.2]} 9... b6
{[%clk 0:02:42.1]} 10. Bg5 {[%clk 0:02:48.1]} 10... Bb7 {[%clk 0:02:37.7]} 11.
Re1 {[%clk 0:02:41.2]} 11... Nc6 {[%clk 0:02:34.3]} 12. Qd3 {[%clk 0:02:25.7]}
12... Be7 {[%clk 0:02:32.5]} 13. a3 {[%clk 0:02:23.3]} 13... h6 {[%clk
0:02:29.7]} 14. Bh4 {[%clk 0:02:15.5]} 14... Nh5 {[%clk 0:02:20]} 15. Bxe7
{[%clk 0:02:13.3]} 15... Nxe7 {[%clk 0:02:20.9]} 16. Rad1 {[%clk 0:02:00.1]}
16... Rc8 {[%clk 0:02:15.5]} 17. Ba6 {[%clk 0:01:46]} 17... Nf4 {[%clk
0:02:14.2]} 18. Qf1 {[%clk 0:01:43]} 18... Bxa6 {[%clk 0:02:10.7]} 19. Qxa6
{[%clk 0:01:42]} 19... Qc7 {[%clk 0:02:08]} 20. g3 {[%clk 0:01:19.7]} 20... Nfd5
{[%clk 0:01:52.2]} 21. Nb5 {[%clk 0:01:18.8]} 21... Qc4 {[%clk 0:01:34.3]} 22.
Ne5 {[%clk 0:01:16.5]} 22... Qb3 {[%clk 0:01:32.8]} 23. Nxa7 {[%clk 0:01:07.1]}
23... Ra8 {[%clk 0:01:30.9]} 24. Qb5 {[%clk 0:01:04.2]} 24... Qc2 {[%clk
0:01:25.4]} 25. Nac6 {[%clk 0:00:53.3]} 25... Nxc6 {[%clk 0:01:23.3]} 26. Nxc6
{[%clk 0:00:49.6]} 26... Rfc8 {[%clk 0:01:19.8]} 27. Ne5 {[%clk 0:00:40.7]}
27... Ra5 {[%clk 0:01:16.2]} 28. Qe2 {[%clk 0:00:39.3]} 28... Qf5 {[%clk
0:01:05.5]} 29. Rc1 {[%clk 0:00:35.1]} 29... Raa8 {[%clk 0:00:59.4]} 30. Qd2
{[%clk 0:00:31.5]} 30... f6 {[%clk 0:00:52.9]} 31. Rxc8+ {[%clk 0:00:27.6]}
31... Rxc8 {[%clk 0:00:52.1]} 32. Nd3 {[%clk 0:00:27.6]} 32... g5 {[%clk
0:00:51.5]} 33. Rc1 {[%clk 0:00:27.2]} 33... Rxc1+ {[%clk 0:00:49.8]} 34. Nxc1
{[%clk 0:00:26.9]} 34... Qe4 {[%clk 0:00:49.6]} 35. Nb3 {[%clk 0:00:22.3]} 35...
h5 {[%clk 0:00:47.8]} 36. h3 {[%clk 0:00:18.7]} 36... Kg7 {[%clk 0:00:45.5]} 37.
Qc1 {[%clk 0:00:17.6]} 37... Qd3 {[%clk 0:00:41.7]} 38. Nd2 {[%clk 0:00:13.5]}
38... Qxd4 {[%clk 0:00:41.8]} 39. Nf3 {[%clk 0:00:13.5]} 39... Qd3 {[%clk
0:00:41]} 40. Ne1 {[%clk 0:00:12.1]} 40... Qe2 {[%clk 0:00:38.5]} 41. Ng2 {[%clk
0:00:11.2]} 41... Kg6 {[%clk 0:00:36]} 42. b4 {[%clk 0:00:10.8]} 42... Qd3
{[%clk 0:00:34.8]} 43. Qe1 {[%clk 0:00:10.2]} 43... e5 {[%clk 0:00:31.2]} 44.
Qc1 {[%clk 0:00:09.4]} 44... Nc3 {[%clk 0:00:30.5]} 45. Kh2 {[%clk 0:00:08.1]}
45... Nb5 {[%clk 0:00:28]} 46. Qe1 {[%clk 0:00:06.6]} 46... Nd4 {[%clk
0:00:27.4]} 47. Qa1 {[%clk 0:00:02.4]} 47... Nc2 {[%clk 0:00:23.3]} 48. Qb2
{[%clk 0:00:01.6]} 48... Nxa3 {[%clk 0:00:22.5]} 49. Qa2 {[%clk 0:00:01.1]}
49... Nc4 {[%clk 0:00:22.1]} 0-1

[Event "*** SCC Grand Prix: Titled Tuesday Blitz"]
[Site "Chess.com"]
[Date "2020.08.11"]
[Round "2"]
[White "Na_binci"]
[Black "GMaka"]
[Result "0-1"]
[WhiteElo "1955"]
[BlackElo "2353"]
[TimeControl "180+1"]
[EndTime "10:19:23 PDT"]
[Termination "GMaka won on time"]

1. d4 {[%clk 0:02:59.4]} 1... Nf6 {[%clk 0:02:58.9]} 2. c4 {[%clk 0:02:57]} 2...
g6 {[%clk 0:02:59.1]} 3. Nc3 {[%clk 0:02:56.3]} 3... d5 {[%clk 0:02:59.3]} 4.
cxd5 {[%clk 0:02:56.4]} 4... Nxd5 {[%clk 0:03:00.2]} 5. e4 {[%clk 0:02:56.8]}
5... Nxc3 {[%clk 0:03:00.9]} 6. bxc3 {[%clk 0:02:57.7]} 6... Bg7 {[%clk
0:03:01.3]} 7. Bg5 {[%clk 0:02:57.5]} 7... O-O {[%clk 0:03:00.3]} 8. Rc1 {[%clk
0:02:54.9]} 8... c5 {[%clk 0:03:00.3]} 9. d5 {[%clk 0:02:50]} 9... h6 {[%clk
0:02:47.1]} 10. Be3 {[%clk 0:02:45.5]} 10... Qa5 {[%clk 0:02:46.1]} 11. Qd2
{[%clk 0:02:45.4]} 11... Kh7 {[%clk 0:02:32.3]} 12. h4 {[%clk 0:02:44.4]} 12...
Nd7 {[%clk 0:02:27.9]} 13. h5 {[%clk 0:01:53.9]} 13... g5 {[%clk 0:02:23.3]} 14.
f4 {[%clk 0:01:23.6]} 14... gxf4 {[%clk 0:02:19.2]} 15. Bxf4 {[%clk 0:01:24.5]}
15... Ne5 {[%clk 0:02:14.3]} 16. Nf3 {[%clk 0:01:21.7]} 16... Ng4 {[%clk
0:02:04.5]} 17. Bd3 {[%clk 0:01:11]} 17... e5 {[%clk 0:01:56.2]} 18. dxe6 {[%clk
0:00:53.9]} 18... Bxe6 {[%clk 0:01:55.6]} 19. O-O {[%clk 0:00:48.8]} 19... c4
{[%clk 0:01:53.7]} 20. Bb1 {[%clk 0:00:39.9]} 20... Qxh5 {[%clk 0:01:52.9]} 21.
e5+ {[%clk 0:00:39.2]} 21... Kh8 {[%clk 0:01:47.6]} 22. Qc2 {[%clk 0:00:26.2]}
22... Qg6 {[%clk 0:01:40.1]} 23. Qd2 {[%clk 0:00:21.3]} 23... Bf5 {[%clk
0:01:39.7]} 24. Nh4 {[%clk 0:00:20.2]} 24... Bxb1 {[%clk 0:01:38.1]} 25. Nxg6+
{[%clk 0:00:19.3]} 25... Bxg6 {[%clk 0:01:39]} 26. Qd7 {[%clk 0:00:17]} 26...
Nxe5 {[%clk 0:01:34.9]} 27. Qxb7 {[%clk 0:00:16.6]} 27... Nd3 {[%clk 0:01:32.6]}
28. Rcd1 {[%clk 0:00:14.9]} 28... Nxf4 {[%clk 0:00:59.4]} 29. Rxf4 {[%clk
0:00:15.8]} 29... Bd3 {[%clk 0:00:43.7]} 30. Qa6 {[%clk 0:00:12.4]} 30... f5
{[%clk 0:00:37.6]} 31. Re1 {[%clk 0:00:11.7]} 31... Rae8 {[%clk 0:00:34.7]} 32.
Rxe8 {[%clk 0:00:09]} 32... Rxe8 {[%clk 0:00:35.6]} 33. Qg6 {[%clk 0:00:09.2]}
33... Re1+ {[%clk 0:00:31.4]} 34. Kh2 {[%clk 0:00:08.2]} 34... Re7 {[%clk
0:00:16]} 35. Rh4 {[%clk 0:00:05.3]} 35... f4 {[%clk 0:00:09.9]} 36. Qd6 {[%clk
0:00:05]} 36... Rf7 {[%clk 0:00:06.5]} 37. Qd8+ {[%clk 0:00:04.2]} 37... Rf8
{[%clk 0:00:05.7]} 38. Qd6 {[%clk 0:00:04]} 38... f3 {[%clk 0:00:06.6]} 39. gxf3
{[%clk 0:00:03]} 39... Rxf3 {[%clk 0:00:06.1]} 40. Qd8+ {[%clk 0:00:03.4]} 40...
Kh7 {[%clk 0:00:05.8]} 41. Qd6 {[%clk 0:00:03.3]} 41... Rf2+ {[%clk 0:00:06.1]}
42. Kg1 {[%clk 0:00:02.5]} 42... Rf6 {[%clk 0:00:07]} 43. Qd4 {[%clk 0:00:01.9]}
43... Rg6+ {[%clk 0:00:07.6]} 44. Rg4 {[%clk 0:00:01.2]} 44... Bxd4+ {[%clk
0:00:07.8]} 0-1

[Event "*** SCC Grand Prix: Titled Tuesday Blitz"]
[Site "Chess.com"]
[Date "2020.08.11"]
[Round "2"]
[White "FairChess_on_YouTube"]
[Black "Roaccutane"]
[Result "1-0"]
[WhiteElo "2989"]
[BlackElo "2598"]
[TimeControl "180+1"]
[EndTime "10:19:25 PDT"]
[Termination "FairChess_on_YouTube won by resignation"]

1. d4 {[%clk 0:03:00.9]} 1... Nf6 {[%clk 0:02:58.6]} 2. c4 {[%clk 0:03:01]} 2...
c5 {[%clk 0:02:58]} 3. Nf3 {[%clk 0:02:58.2]} 3... cxd4 {[%clk 0:02:54.7]} 4.
Nxd4 {[%clk 0:02:59.1]} 4... e5 {[%clk 0:02:55]} 5. Nb5 {[%clk 0:02:58]} 5... d6
{[%clk 0:02:54.3]} 6. Bg5 {[%clk 0:02:55.2]} 6... Be7 {[%clk 0:02:53.6]} 7. Bxf6
{[%clk 0:02:53.6]} 7... gxf6 {[%clk 0:02:52.1]} 8. g3 {[%clk 0:02:50.8]} 8... h5
{[%clk 0:02:50.8]} 9. Bg2 {[%clk 0:02:50.2]} 9... h4 {[%clk 0:02:49]} 10. N1c3
{[%clk 0:02:48.6]} 10... Nc6 {[%clk 0:02:46.2]} 11. Nd5 {[%clk 0:02:47.5]} 11...
Kf8 {[%clk 0:02:41.8]} 12. e3 {[%clk 0:02:37.6]} 12... a6 {[%clk 0:02:35.8]} 13.
Nbc3 {[%clk 0:02:32.8]} 13... Be6 {[%clk 0:02:27.7]} 14. Qe2 {[%clk 0:02:29.6]}
14... Rc8 {[%clk 0:02:24.5]} 15. O-O {[%clk 0:02:20.8]} 15... f5 {[%clk
0:02:19.8]} 16. Rad1 {[%clk 0:02:19.3]} 16... e4 {[%clk 0:02:03.5]} 17. f4
{[%clk 0:02:19.1]} 17... hxg3 {[%clk 0:01:37]} 18. hxg3 {[%clk 0:02:20]} 18...
Bf6 {[%clk 0:01:13.3]} 19. b3 {[%clk 0:02:17.2]} 19... Bxc3 {[%clk 0:01:07.9]}
20. Nxc3 {[%clk 0:02:18.1]} 20... Nb4 {[%clk 0:01:08.2]} 21. Rd4 {[%clk
0:02:12.1]} 21... Nd3 {[%clk 0:01:03.6]} 22. Rd1 {[%clk 0:02:11.8]} 22... Rg8
{[%clk 0:00:59.1]} 23. R1xd3 {[%clk 0:01:37.1]} 23... exd3 {[%clk 0:00:58.8]}
24. Qe1 {[%clk 0:01:32]} 24... b5 {[%clk 0:00:50.7]} 25. cxb5 {[%clk 0:01:29.4]}
25... axb5 {[%clk 0:00:50.2]} 26. Rxd3 {[%clk 0:01:22.8]} 26... Qa5 {[%clk
0:00:44.2]} 27. Kf2 {[%clk 0:01:16.5]} 27... b4 {[%clk 0:00:40.3]} 28. Na4
{[%clk 0:01:14.9]} 28... Rc2+ {[%clk 0:00:40.1]} 29. Rd2 {[%clk 0:01:15]} 29...
Qc7 {[%clk 0:00:37.4]} 30. Qe2 {[%clk 0:01:13.8]} 30... Rxd2 {[%clk 0:00:36.7]}
31. Qxd2 {[%clk 0:01:14.7]} 31... Bd7 {[%clk 0:00:32.3]} 32. Nb2 {[%clk
0:01:13.2]} 32... Bb5 {[%clk 0:00:29.8]} 33. Bf3 {[%clk 0:00:48.7]} 33... Qc3
{[%clk 0:00:28.2]} 34. Qxd6+ {[%clk 0:00:47.7]} 34... Kg7 {[%clk 0:00:28.4]} 35.
Nd1 {[%clk 0:00:43]} 35... Qc2+ {[%clk 0:00:24.9]} 36. Ke1 {[%clk 0:00:38.2]}
36... Re8 {[%clk 0:00:18.8]} 37. Qxb4 {[%clk 0:00:33]} 37... Qd3 {[%clk
0:00:16]} 38. Qc3+ {[%clk 0:00:19.8]} 38... Qxc3+ {[%clk 0:00:15.2]} 39. Nxc3
{[%clk 0:00:20.7]} 39... Rxe3+ {[%clk 0:00:15.8]} 40. Kd2 {[%clk 0:00:21.2]}
40... Rd3+ {[%clk 0:00:15.5]} 41. Kc2 {[%clk 0:00:20.4]} 41... Rxf3 {[%clk
0:00:15.6]} 42. Nxb5 {[%clk 0:00:20.5]} 42... Rxg3 {[%clk 0:00:16.5]} 43. a4
{[%clk 0:00:20.9]} 43... Rg2+ {[%clk 0:00:16.4]} 44. Kc3 {[%clk 0:00:20.8]}
44... Rf2 {[%clk 0:00:17.2]} 45. a5 {[%clk 0:00:20.7]} 45... Rxf4 {[%clk
0:00:17.6]} 46. a6 {[%clk 0:00:21.1]} 46... Rh4 {[%clk 0:00:16.9]} 47. a7 {[%clk
0:00:19.9]} 47... Rh8 {[%clk 0:00:17.8]} 48. Nc7 {[%clk 0:00:19.6]} 48... f4
{[%clk 0:00:18.2]} 49. a8=Q {[%clk 0:00:17.9]} 49... Rxa8 {[%clk 0:00:18]} 50.
Nxa8 {[%clk 0:00:18.8]} 50... Kf6 {[%clk 0:00:18.8]} 51. Nb6 {[%clk 0:00:18.3]}
51... Ke6 {[%clk 0:00:18.7]} 52. Kd3 {[%clk 0:00:17.6]} 52... Kd6 {[%clk
0:00:19.2]} 53. Nc4+ {[%clk 0:00:17.4]} 53... Kc5 {[%clk 0:00:20.1]} 54. Nd2
{[%clk 0:00:17.9]} 54... Kb4 {[%clk 0:00:20.9]} 55. Ke4 {[%clk 0:00:18.2]} 55...
Kc3 {[%clk 0:00:21.3]} 56. Kxf4 {[%clk 0:00:18.3]} 56... Kd4 {[%clk 0:00:19.7]}
57. Kf5 {[%clk 0:00:18.4]} 1-0